2CCN - Level 2 Cost Centre Name,,9CCN - Level 9 Cost Centre Name,9CCC - Level 9 Cost Centre Code,9AN - Level 9 Account Name,9AC - Level 9 Account Code,Date posted,Date of transaction,Merchant Name,Merchant City,Originating Account Name,Originating Account Number,MCC/SIC Code,MCC Description,Original Amount,Currency,Conversion Rate,Billed Amount,Debit Credit,Reference Number,Statement Cycle,Account Name
Gloucester City Council,23UE,TOURISM MARKETING,LT100,ADVERTISING AND PUBLICITY,5702,2016-07-20,2016-07-19,VISTAPR*VistaPrint.uk,080-0028825,REDACTED,471*********4015,2741,MISCELLANEOUS PUBLISHING & PRINTING,3.59,Pound Sterling (826),1,3.59,Debit,74313226201000965821965,2016-08-02,GLOUCESTER CC
Gloucester City Council,23UE,MEMBERS SUPPORT,RC300,SUBSCRIPTIONS,5600,2016-07-21,2016-07-20,WWW.ICO.GOV.UK,03031231113 W,REDACTED,471*********1715,9399,GOVERNMENT SERVICES NOT ELSEWHERE CLASSIFIED,35,Pound Sterling (826),1,35,Debit,74579156203008070607860,2016-08-02,GLOUCESTER CC
Gloucester City Council,23UE,MEMBERS SUPPORT,RC300,SUBSCRIPTIONS,5600,2016-07-21,2016-07-20,WWW.ICO.GOV.UK,03031231113 W,REDACTED,471*********1715,9399,GOVERNMENT SERVICES NOT ELSEWHERE CLASSIFIED,35,Pound Sterling (826),1,35,Debit,74579156203008370607909,2016-08-02,GLOUCESTER CC
Gloucester City Council,23UE,MEMBERS SUPPORT,RC300,SUBSCRIPTIONS,5600,2016-07-21,2016-07-20,WWW.ICO.GOV.UK,03031231113 W,REDACTED,471*********1715,9399,GOVERNMENT SERVICES NOT ELSEWHERE CLASSIFIED,35,Pound Sterling (826),1,35,Debit,74579156203008470607916,2016-08-02,GLOUCESTER CC
Gloucester City Council,23UE,MEMBERS SUPPORT,RC300,SUBSCRIPTIONS,5600,2016-07-21,2016-07-20,WWW.ICO.GOV.UK,03031231113 W,REDACTED,471*********1715,9399,GOVERNMENT SERVICES NOT ELSEWHERE CLASSIFIED,35,Pound Sterling (826),1,35,Debit,74579156203008570607931,2016-08-02,GLOUCESTER CC
Gloucester City Council,23UE,MEMBERS SUPPORT,RC300,SUBSCRIPTIONS,5600,2016-07-21,2016-07-20,WWW.ICO.GOV.UK,03031231113 W,REDACTED,471*********1715,9399,GOVERNMENT SERVICES NOT ELSEWHERE CLASSIFIED,35,Pound Sterling (826),1,35,Debit,74579156203008970740712,2016-08-02,GLOUCESTER CC
Gloucester City Council,23UE,MEMBERS SUPPORT,RC300,SUBSCRIPTIONS,5600,2016-07-21,2016-07-20,WWW.ICO.GOV.UK,03031231113 W,REDACTED,471*********1715,9399,GOVERNMENT SERVICES NOT ELSEWHERE CLASSIFIED,35,Pound Sterling (826),1,35,Debit,74579156203009070740727,2016-08-02,GLOUCESTER CC
Gloucester City Council,23UE,MEMBERS SUPPORT,RC300,SUBSCRIPTIONS,5600,2016-07-21,2016-07-20,WWW.ICO.GOV.UK,03031231113 W,REDACTED,471*********1715,9399,GOVERNMENT SERVICES NOT ELSEWHERE CLASSIFIED,35,Pound Sterling (826),1,35,Debit,74579156203009270740741,2016-08-02,GLOUCESTER CC
Gloucester City Council,23UE,MEMBERS SUPPORT,RC300,SUBSCRIPTIONS,5600,2016-07-21,2016-07-20,WWW.ICO.GOV.UK,03031231113 W,REDACTED,471*********1715,9399,GOVERNMENT SERVICES NOT ELSEWHERE CLASSIFIED,35,Pound Sterling (826),1,35,Debit,74579156203009370740765,2016-08-02,GLOUCESTER CC
Gloucester City Council,23UE,MEMBERS SUPPORT,RC300,SUBSCRIPTIONS,5600,2016-07-21,2016-07-20,WWW.ICO.GOV.UK,03031231113 W,REDACTED,471*********1715,9399,GOVERNMENT SERVICES NOT ELSEWHERE CLASSIFIED,35,Pound Sterling (826),1,35,Debit,74579156203009470740772,2016-08-02,GLOUCESTER CC
Gloucester City Council,23UE,MEMBERS SUPPORT,RC300,SUBSCRIPTIONS,5600,2016-07-21,2016-07-20,WWW.ICO.GOV.UK,03031231113 W,REDACTED,471*********1715,9399,GOVERNMENT SERVICES NOT ELSEWHERE CLASSIFIED,35,Pound Sterling (826),1,35,Debit,74579156203008971299692,2016-08-02,GLOUCESTER CC
Gloucester City Council,23UE,MEMBERS SUPPORT,RC300,SUBSCRIPTIONS,5600,2016-07-21,2016-07-20,WWW.ICO.GOV.UK,03031231113 W,REDACTED,471*********1715,9399,GOVERNMENT SERVICES NOT ELSEWHERE CLASSIFIED,35,Pound Sterling (826),1,35,Debit,74579156203009071299707,2016-08-02,GLOUCESTER CC
Gloucester City Council,23UE,MEMBERS SUPPORT,RC300,SUBSCRIPTIONS,5600,2016-07-21,2016-07-20,WWW.ICO.GOV.UK,03031231113 W,REDACTED,471*********1715,9399,GOVERNMENT SERVICES NOT ELSEWHERE CLASSIFIED,35,Pound Sterling (826),1,35,Debit,74579156203009171299714,2016-08-02,GLOUCESTER CC
Gloucester City Council,23UE,MEMBERS SUPPORT,RC300,SUBSCRIPTIONS,5600,2016-07-21,2016-07-20,WWW.ICO.GOV.UK,03031231113 W,REDACTED,471*********1715,9399,GOVERNMENT SERVICES NOT ELSEWHERE CLASSIFIED,35,Pound Sterling (826),1,35,Debit,74579156203009271299721,2016-08-02,GLOUCESTER CC
Gloucester City Council,23UE,MEMBERS SUPPORT,RC300,SUBSCRIPTIONS,5600,2016-07-21,2016-07-20,WWW.ICO.GOV.UK,03031231113 W,REDACTED,471*********1715,9399,GOVERNMENT SERVICES NOT ELSEWHERE CLASSIFIED,35,Pound Sterling (826),1,35,Debit,74579156203009371299738,2016-08-02,GLOUCESTER CC
Gloucester City Council,23UE,HOMELESSNESS,CH120,BOARD AND LODGING,5515,2016-07-08,2016-07-07,TRAVELODGE WEBSITE,RESERVATION,REDACTED,471*********1443,3615,TRAVELODGE,84,Pound Sterling (826),1,84,Debit,74424716189298154559915,2016-08-02,GLOUCESTER CC
Gloucester City Council,23UE,HOMELESSNESS,CH120,BOARD AND LODGING,5515,2016-07-12,2016-07-11,TRAVELODGE WEBSITE,RESERVATION,REDACTED,471*********1443,3615,TRAVELODGE,283,Pound Sterling (826),1,283,Debit,74424716193298106136998,2016-08-02,GLOUCESTER CC
Gloucester City Council,23UE,REHOUSING,CH111,VOCATIONAL TRAINING,2970,2016-07-14,2016-07-13,WWW.PMGLTD.CO.UK,1612113002,REDACTED,471*********1443,7399,BUSINESS SERVICES NOT ELSEWHERE CLASSIFIED,399.6,Pound Sterling (826),1,399.6,Debit,74830506195174131359734,2016-08-02,GLOUCESTER CC
Gloucester City Council,23UE,HOMELESSNESS PREVENTION,CH122,VOCATIONAL TRAINING,2970,2016-07-14,2016-07-13,WWW.PMGLTD.CO.UK,1612113002,REDACTED,471*********1443,7399,BUSINESS SERVICES NOT ELSEWHERE CLASSIFIED,399.6,Pound Sterling (826),1,399.6,Debit,74830506195174131359734,2016-08-02,GLOUCESTER CC
Gloucester City Council,23UE,HOMELESSNESS,CH120,BOARD AND LODGING,5515,2016-07-20,2016-07-18,TRAVELODGE WEBSITE,RESERVATION,REDACTED,471*********1443,3615,TRAVELODGE,51,Pound Sterling (826),1,51,Debit,74424716201298198870397,2016-08-02,GLOUCESTER CC
Gloucester City Council,23UE,HOMELESSNESS,CH120,BOARD AND LODGING,5515,2016-07-20,2016-07-18,TRAVELODGE WEBSITE,RESERVATION,REDACTED,471*********1443,3615,TRAVELODGE,51,Pound Sterling (826),1,51,Debit,74424716201298198870801,2016-08-02,GLOUCESTER CC
Gloucester City Council,23UE,HOMELESSNESS,CH120,BOARD AND LODGING,5515,2016-07-20,2016-07-18,TRAVELODGE WEBSITE,RESERVATION,REDACTED,471*********1443,3615,TRAVELODGE,51,Pound Sterling (826),1,51,Debit,74424716201298198871270,2016-08-02,GLOUCESTER CC
Gloucester City Council,23UE,HOMELESSNESS,CH120,BOARD AND LODGING,5515,2016-07-20,2016-07-19,TRAVELODGE WEBSITE,RESERVATION,REDACTED,471*********1443,3615,TRAVELODGE,74,Pound Sterling (826),1,74,Debit,74424716201298102632701,2016-08-02,GLOUCESTER CC
Gloucester City Council,23UE,HOMELESSNESS,CH120,BOARD AND LODGING,5515,2016-07-21,2016-07-20,TRAVELODGE WEBSITE,RESERVATION,REDACTED,471*********1443,3615,TRAVELODGE,480,Pound Sterling (826),1,480,Debit,74424716202298116805417,2016-08-02,GLOUCESTER CC
Gloucester City Council,23UE,HOMELESSNESS,CH120,BOARD AND LODGING,5515,2016-07-26,2016-07-25,TRAVELODGE WEBSITE,RESERVATION,REDACTED,471*********1443,3615,TRAVELODGE,498,Pound Sterling (826),1,498,Debit,74424716207298180219201,2016-08-02,GLOUCESTER CC
Gloucester City Council,23UE,HOMELESSNESS,CH120,BOARD AND LODGING,5515,2016-07-26,2016-07-25,TRAVELODGE WEBSITE,RESERVATION,REDACTED,471*********1443,3615,TRAVELODGE,67,Pound Sterling (826),1,67,Debit,74424716207298180274503,2016-08-02,GLOUCESTER CC
Gloucester City Council,23UE,HOMELESSNESS,CH120,BOARD AND LODGING,5515,2016-07-28,2016-07-27,TRAVELODGE WEBSITE,RESERVATION,REDACTED,471*********1443,3615,TRAVELODGE,305,Pound Sterling (826),1,305,Debit,74424716209298113783396,2016-08-02,GLOUCESTER CC
Gloucester City Council,23UE,HOMELESSNESS,CH120,BOARD AND LODGING,5515,2016-08-02,2016-08-01,THE LITTLE THATCH,GLOUCESTER,REDACTED,471*********1443,5812,EATING PLACES  RESTAURANTS,560,Pound Sterling (826),1,560,Debit,74579156214009162694029,2016-08-02,GLOUCESTER CC
Gloucester City Council,23UE,DOCKS COMPLEX - SERVICES,RB100,CLEANING MATERIALS,3600,2016-07-18,2016-07-15,SAINSBURYS SUPERMA,GLOUCESTER QU,REDACTED,471*********8223,5411,GROCERY STORES  SUPERMARKETS,27.45,Pound Sterling (826),1,27.45,Debit,74579156198007876543508,2016-08-02,GLOUCESTER CC
Gloucester City Council,23UE,CIVIC ADMIN AND HOSPITALITY,RC210,OTHER MINOR SUPPLIES SERVICES,5590,2016-07-20,2016-07-19,J W PLANT & CO LIMITED,LEEDS,REDACTED,471*********8223,7399,BUSINESS SERVICES NOT ELSEWHERE CLASSIFIED,26.18,Pound Sterling (826),1,26.18,Debit,74745096202070047284809,2016-08-02,GLOUCESTER CC
Gloucester City Council,23UE,SAFER STRONGER COMMUNITIES,FP841,OTHER MINOR SUPPLIES SERVICES,5590,2016-07-14,2016-07-13,PIZZA PIZZA,GLOUCESTER,REDACTED,471*********8476,5814,FAST FOOD RESTAURANTS,200,Pound Sterling (826),1,200,Debit,74007476196003009437524,2016-08-02,GLOUCESTER CC
Gloucester City Council,23UE,SAFER STRONGER COMMUNITIES,FP841,OTHER MINOR SUPPLIES SERVICES,5590,2016-07-14,2016-07-13,PIZZA PIZZA,GLOUCESTER,REDACTED,471*********8476,5814,FAST FOOD RESTAURANTS,120,Pound Sterling (826),1,120,Debit,74007476196003009497965,2016-08-02,GLOUCESTER CC
Gloucester City Council,23UE,SAFER STRONGER COMMUNITIES,FP841,OTHER MINOR SUPPLIES SERVICES,5590,2016-07-14,2016-07-13,ASDA HOME SHOPPING,CARDS LTD,REDACTED,471*********8476,5411,GROCERY STORES  SUPERMARKETS,41.71,Pound Sterling (826),1,41.71,Debit,74697156196030232646566,2016-08-02,GLOUCESTER CC
Gloucester City Council,23UE,CITY MUSEUM AND ART GALLERY,LM200,ADVERTISING AND PUBLICITY,5702,2016-07-06,2016-07-05,FACEBOOK UZ4FT9NJW2,www.fb.me/ads,REDACTED,471*********9523,7311,ADVERTISING SERVICES,111.54,Pound Sterling (826),1,111.54,Debit,74987506187210571411543,2016-08-02,GLOUCESTER CC
Gloucester City Council,23UE,FOLK MUSEUM,LM210,ADVERTISING AND PUBLICITY,5702,2016-07-06,2016-07-05,FACEBOOK UZ4FT9NJW2,www.fb.me/ads,REDACTED,471*********9523,7311,ADVERTISING SERVICES,111.54,Pound Sterling (826),1,111.54,Debit,74987506187210571411543,2016-08-02,GLOUCESTER CC
Gloucester City Council,23UE,FOLK MUSEUM,LM210,CATERING PROVISIONS -FOOD,5110,2016-07-18,2016-07-15,ASDA SUPERSTORE,GLOUCESTER,REDACTED,471*********9523,5411,GROCERY STORES  SUPERMARKETS,64.93,Pound Sterling (826),1,64.93,Debit,74698176198050233940912,2016-08-02,GLOUCESTER CC
Gloucester City Council,23UE,FOLK MUSEUM,LM210,CATERING PROVISIONS -FOOD,5110,2016-07-26,2016-07-25,ASDA SUPERSTORE,GLOUCESTER,REDACTED,471*********9523,5411,GROCERY STORES  SUPERMARKETS,61.36,Pound Sterling (826),1,61.36,Debit,74698176208020252017254,2016-08-02,GLOUCESTER CC
Gloucester City Council,23UE,CITY MUSEUM CATERING,LM202,CATERING PROVISIONS -FOOD,5110,2016-07-28,2016-07-27,BOOKER LIMITED GLOUCESTER,GLOUCESTER,REDACTED,471*********9523,5811,CATERERS,280.07,Pound Sterling (826),1,280.07,Debit,74463666209922094221295,2016-08-02,GLOUCESTER CC
Gloucester City Council,23UE,FOLK MUSEUM,LM210,CATERING PROVISIONS -FOOD,5110,2016-07-28,2016-07-27,TESCO STORES (6819),GLOUCESTER,REDACTED,471*********9523,5411,GROCERY STORES  SUPERMARKETS,1.54,Pound Sterling (826),1,1.54,Debit,74698086210040305829734,2016-08-02,GLOUCESTER CC
Gloucester City Council,23UE,CITY MUSEUM AND ART GALLERY,LM200,ADVERTISING AND PUBLICITY,5702,2016-08-01,2016-07-31,FACEBK BJZMM9SKW2,www.fb.me/ads,REDACTED,471*********9523,7311,ADVERTISING SERVICES,18.05,Pound Sterling (826),1,18.05,Debit,74987506213301422201247,2016-08-02,GLOUCESTER CC
Gloucester City Council,23UE,FOLK MUSEUM,LM210,ADVERTISING AND PUBLICITY,5702,2016-08-01,2016-07-31,FACEBK BJZMM9SKW2,www.fb.me/ads,REDACTED,471*********9523,7311,ADVERTISING SERVICES,18.04,Pound Sterling (826),1,18.04,Debit,74987506213301422201247,2016-08-02,GLOUCESTER CC
Gloucester City Council,23UE,BLACKFRIARS WEDDINGS,LA220,CATERING PROVISIONS -LIQUOR,5111,2016-07-04,2016-07-01,ALDI,GLOUCESTER,REDACTED,471*********2470,5411,GROCERY STORES  SUPERMARKETS,35.94,Pound Sterling (826),1,35.94,Debit,74019476184495000209268,2016-08-02,GLOUCESTER CC
Gloucester City Council,23UE,BLACKFRIARS WEDDINGS,LA220,CATERING PROVISIONS -LIQUOR,5111,2016-07-06,2016-07-05,ASDA SUPERSTORE,GLOUCESTER,REDACTED,471*********2470,5411,GROCERY STORES  SUPERMARKETS,17.56,Pound Sterling (826),1,17.56,Debit,74698176188070219110340,2016-08-02,GLOUCESTER CC
Gloucester City Council,23UE,GUILDHALL BAR AND CAF�,LA210,CATERING PROVISIONS -LIQUOR,5111,2016-07-11,2016-07-08,ASDA SUPERSTORE,GLOUCESTER,REDACTED,471*********2470,5411,GROCERY STORES  SUPERMARKETS,5.81,Pound Sterling (826),1,5.81,Debit,74698176191000189079246,2016-08-02,GLOUCESTER CC
Gloucester City Council,23UE,GUILDHALL BAR AND CAF�,LA210,CATERING PROVISIONS -FOOD,5110,2016-07-21,2016-07-20,ALDI,GLOUCESTER,REDACTED,471*********2470,5411,GROCERY STORES  SUPERMARKETS,18.98,Pound Sterling (826),1,18.98,Debit,74019476203495000852361,2016-08-02,GLOUCESTER CC
Gloucester City Council,23UE,GUILDHALL BAR AND CAF�,LA210,CATERING PROVISIONS -FOOD,5110,2016-07-27,2016-07-26,ASDA SUPERSTORE,GLOUCESTER,REDACTED,471*********2470,5411,GROCERY STORES  SUPERMARKETS,8.5,Pound Sterling (826),1,8.5,Debit,74698176209030197970508,2016-08-02,GLOUCESTER CC
Gloucester City Council,23UE,GUILDHALL BAR AND CAF�,LA210,CATERING PROVISIONS -FOOD,5110,2016-07-28,2016-07-27,BOOKER LIMITED GLOUCESTER,GLOUCESTER,REDACTED,471*********2470,5811,CATERERS,62.11,Pound Sterling (826),1,62.11,Debit,74463666209922094221568,2016-08-02,GLOUCESTER CC
Gloucester City Council,23UE,BLACKFRIARS WEDDINGS,LA220,HIRE OF EQUIPMENT,5020,2016-08-01,2016-07-29,WWW.MJSEQUIPMENT.COM,GLOUCESTER,REDACTED,471*********2470,5732,ELECTRONIC SALES,31.58,Pound Sterling (826),1,31.58,Debit,74085326212465000235243,2016-08-02,GLOUCESTER CC
Gloucester City Council,23UE,GUILDHALL BAR AND CAF�,LA210,CATERING PROVISIONS -FOOD,5110,2016-08-01,2016-07-29,ALDI,GLOUCESTER,REDACTED,471*********2470,5411,GROCERY STORES  SUPERMARKETS,17.78,Pound Sterling (826),1,17.78,Debit,74019476212495001027822,2016-08-02,GLOUCESTER CC
Gloucester City Council,23UE,MANAGING DIRECTOR,RE100,PUBLIC TRANSPORTATION,4061,2016-07-04,2016-07-01,TRAINLINE,RAIL TICKETS,REDACTED,471*********4841,4112,PASSENGER RAILWAYS,86.5,Pound Sterling (826),1,86.5,Debit,74998866183626229258177,2016-08-02,GLOUCESTER CC
Gloucester City Council,23UE,MEMBERS SUPPORT,RC300,PUBLIC TRANSPORTATION,4061,2016-07-07,2016-07-06,TRAINLINE,RAIL TICKETS,REDACTED,471*********4841,4112,PASSENGER RAILWAYS,86.5,Pound Sterling (826),1,86.5,Debit,74998866188626286418578,2016-08-02,GLOUCESTER CC
Gloucester City Council,23UE,HEAD OF REGENERATION & ECO DEV,GO102,PUBLIC TRANSPORTATION,4061,2016-07-07,2016-07-06,TRAINLINE,RAIL TICKETS,REDACTED,471*********4841,4112,PASSENGER RAILWAYS,126.48,Pound Sterling (826),1,126.48,Debit,74998866188626286418941,2016-08-02,GLOUCESTER CC
Gloucester City Council,23UE,MEMBERS SUPPORT,RC300,PUBLIC TRANSPORTATION,4061,2016-07-15,2016-07-14,TRAINLINE,RAIL TICKETS,REDACTED,471*********4841,4112,PASSENGER RAILWAYS,130.87,Pound Sterling (826),1,130.87,Debit,74998866196627482183750,2016-08-02,GLOUCESTER CC
Gloucester City Council,23UE,MEMBERS SUPPORT,RC300,PUBLIC TRANSPORTATION,4061,2016-07-15,2016-07-14,TRAINLINE,RAIL TICKETS,REDACTED,471*********4841,4112,PASSENGER RAILWAYS,122.91,Pound Sterling (826),1,122.91,Debit,74998866196627482182695,2016-08-02,GLOUCESTER CC
Gloucester City Council,23UE,MANAGING DIRECTOR,RE100,PUBLIC TRANSPORTATION,4061,2016-07-28,2016-07-27,TRAINLINE,RAIL TICKETS,REDACTED,471*********4841,4112,PASSENGER RAILWAYS,55.18,Pound Sterling (826),1,55.18,Debit,74998866209629822764849,2016-08-02,GLOUCESTER CC
Gloucester City Council,23UE,GROUP MGR CULT SER & TOURISM,GR102,PUBLIC TRANSPORTATION,4061,2016-07-29,2016-07-28,TRAINLINE,RAIL TICKETS,REDACTED,471*********4841,4112,PASSENGER RAILWAYS,206.86,Pound Sterling (826),1,206.86,Debit,74998866210629855294406,2016-08-02,GLOUCESTER CC
Gloucester City Council,23UE,MEMBERS SUPPORT,RC300,PUBLIC TRANSPORTATION,4061,2016-08-02,2016-08-01,TRAINLINE,RAIL TICKETS,REDACTED,471*********4841,4112,PASSENGER RAILWAYS,172.38,Pound Sterling (826),1,172.38,Debit,74998866214630965873838,2016-08-02,GLOUCESTER CC
Gloucester City Council,23UE,BLACKFRIARS,LA609,FEES FOR SERVICES RECEIVED,5350,2016-07-04,2016-07-01,WWW.MOONPIG.COM LTD,LONDON SE1,REDACTED,471*********6962,5947,GIFT  CARD  NOVELTY  AND SOUVENIR SHOPS,32,Pound Sterling (826),1,32,Debit,74019476184569000202810,2016-08-02,GLOUCESTER CC
Gloucester City Council,23UE,GLOUCESTER GUILDHALL,LA100,VEHICLE LICENCES,4015,2016-07-13,2016-07-12,DVLA VEHICLE TAX,(DVLA),REDACTED,471*********6962,9399,GOVERNMENT SERVICES NOT ELSEWHERE CLASSIFIED,147.5,Pound Sterling (826),1,147.5,Debit,74579156195005571951631,2016-08-02,GLOUCESTER CC
Gloucester City Council,23UE,GLOUCESTER GUILDHALL,LA100,GENERAL REPAIR/MAINT BUILDINGS,3000,2016-07-15,2016-07-14,WILKO RETAIL LIMIT,GLOUCESTER 14,REDACTED,471*********6962,5722,HOUSEHOLD APPLIANCE STORES,7.44,Pound Sterling (826),1,7.44,Debit,74579156197000270791493,2016-08-02,GLOUCESTER CC
Gloucester City Council,23UE,GUILDHALL EVENTS,LA200,FEES FOR SERVICES RECEIVED,5350,2016-07-18,2016-07-15,MIPERMIT PARKING-DOM,INTERNET,REDACTED,471*********6962,7523,AUTOMOBILE PARKING LOTS AND GARAGES,20,Pound Sterling (826),1,20,Debit,74745106198050096738932,2016-08-02,GLOUCESTER CC
Gloucester City Council,23UE,GUILDHALL EVENTS,LA200,FEES FOR SERVICES RECEIVED,5350,2016-07-20,2016-07-19,MIPERMIT PARKING-DOM,INTERNET,REDACTED,471*********6962,7523,AUTOMOBILE PARKING LOTS AND GARAGES,20,Pound Sterling (826),1,20,Debit,74745106202070166119692,2016-08-02,GLOUCESTER CC
Gloucester City Council,23UE,GLOUCESTER GUILDHALL,LA100,GENERAL REPAIR/MAINT BUILDINGS,3000,2016-07-22,2016-07-21,WILKO RETAIL LIMIT,GLOUCESTER 14,REDACTED,471*********6962,5722,HOUSEHOLD APPLIANCE STORES,65.67,Pound Sterling (826),1,65.67,Debit,74579156204005070877617,2016-08-02,GLOUCESTER CC
Gloucester City Council,23UE,GUILDHALL EVENTS,LA200,ADVERTISING AND PUBLICITY,5702,2016-07-25,2016-07-22,WWW.INSTANTPRINT.C,01709 382202,REDACTED,471*********6962,7338,QUICK-COPY AND REPRODUCTION SERVICES,46.99,Pound Sterling (826),1,46.99,Debit,74579156205001977695938,2016-08-02,GLOUCESTER CC
Gloucester City Council,23UE,GUILDHALL EVENTS,LA200,PUBLIC TRANSPORTATION,4061,2016-07-29,2016-07-28,PAYPAL *TRAINLINE,35314369001,REDACTED,471*********6962,4789,TRANSPORTATION SERVICES NOT ELSEWHERE CLASSIFIED,54,Pound Sterling (826),1,54,Debit,74998866210629845450357,2016-08-02,GLOUCESTER CC
Gloucester City Council,23UE,GUILDHALL EVENTS,LA200,PUBLIC TRANSPORTATION,4061,2016-07-29,2016-07-28,PAYPAL *NATIONALEXP,35314369001,REDACTED,471*********6962,4789,TRANSPORTATION SERVICES NOT ELSEWHERE CLASSIFIED,23.2,Pound Sterling (826),1,23.2,Debit,74998866210629844665229,2016-08-02,GLOUCESTER CC
Gloucester City Council,23UE,GUILDHALL EVENTS,LA200,FEES FOR SERVICES RECEIVED,5350,2016-07-29,2016-07-28,PAYPAL *TRAVELODGEH,35314369001,REDACTED,471*********6962,7011,LODGING  HOTELS  MOTELS  RESORTS,188,Pound Sterling (826),1,188,Debit,74998866210629845646301,2016-08-02,GLOUCESTER CC
Gloucester City Council,23UE,GUILDHALL EVENTS,LA200,FEES FOR SERVICES RECEIVED,5350,2016-08-01,2016-07-29,MIPERMIT PARKING-DOM,INTERNET,REDACTED,471*********6962,7523,AUTOMOBILE PARKING LOTS AND GARAGES,10,Pound Sterling (826),1,10,Debit,74745106212060111498620,2016-08-02,GLOUCESTER CC
Gloucester City Council,23UE,GUILDHALL EVENTS,LA200,ADVERTISING AND PUBLICITY,5702,2016-08-01,2016-07-31,FACEBK 2B87Z9ED72,www.fb.me/ads,REDACTED,471*********6962,7311,ADVERTISING SERVICES,75.94,Pound Sterling (826),1,75.94,Debit,74987506213689455671249,2016-08-02,GLOUCESTER CC
Gloucester City Council,23UE,BUSINESS TRANSFORMATION & TECH,RT700,COMPUTER CONSUMABLES,5422,2016-07-05,2016-07-04,WWW.MOBILEFUN.CO.U,MOBILEFUN.CO.,REDACTED,471*********5409,4812,TELECOMMUNICATION EQUIPMENT INCLUDING TELEPHONE SALES,51.94,Pound Sterling (826),1,51.94,Debit,74579156187008577566320,2016-08-02,GLOUCESTER CC
Gloucester City Council,23UE,CLIENT REVS & BENS CONTRACT,RT240,COURT FEES,5358,2016-07-11,2016-07-08,HMCOURTS-SERVICE.G,1452420100,REDACTED,471*********5409,9222,FINES,2124,Pound Sterling (826),1,2124,Debit,74579156191001072968186,2016-08-02,GLOUCESTER CC
Gloucester City Council,23UE,FINANCIAL SERVICES,RT200,VOCATIONAL TRAINING,2970,2016-07-12,2016-07-11,WWW.AAT-ORG.UK,LONDON EC1R,REDACTED,471*********5409,8931,ACCOUNTING  AUDITING AND BOOKKEEPING SERVICES,88,Pound Sterling (826),1,88,Debit,74085326194529000009411,2016-08-02,GLOUCESTER CC
Gloucester City Council,23UE,FINANCIAL SERVICES,RT200,CONFERENCE/MEETING EXPENSES,5510,2016-07-13,2016-07-11,REDACTIVE,0207 8806226,REDACTED,471*********5409,7399,BUSINESS SERVICES NOT ELSEWHERE CLASSIFIED,108,Pound Sterling (826),1,108,Debit,74579156194004979447327,2016-08-02,GLOUCESTER CC
Gloucester City Council,23UE,FINANCIAL SERVICES,RT200,CONFERENCE/MEETING EXPENSES,5510,2016-07-13,2016-07-11,PREMIER INN44014775,MANCHESTER,REDACTED,471*********5409,3811,PREMIER INN,201,Pound Sterling (826),1,201,Debit,74019476195529000058338,2016-08-02,GLOUCESTER CC
Gloucester City Council,23UE,BUSINESS TRANSFORMATION & TECH,RT700,COMPUTER HARDWARE <5000,5420,2016-07-20,2016-07-18,WWW.UK.INSIGHT.COM,0844 6925329,REDACTED,471*********5409,5964,CATALOG MERCHANTS,41.89,Pound Sterling (826),1,41.89,Debit,74579156202001376703971,2016-08-02,GLOUCESTER CC
Gloucester City Council,23UE,BUSINESS TRANSFORMATION & TECH,RT700,COMPUTER HARDWARE <5000,5420,2016-07-21,2016-07-19,WP-TVCABLES NIMBUS,STANFORD,REDACTED,471*********5409,5732,ELECTRONIC SALES,20.41,Pound Sterling (826),1,20.41,Debit,74916776203080028755940,2016-08-02,GLOUCESTER CC
Gloucester City Council,23UE,BUSINESS TRANSFORMATION & TECH,RT700,COMPUTER HARDWARE <5000,5420,2016-08-01,2016-07-28,EBUYER (UK) LTD,SHEFFIELD,REDACTED,471*********5409,5722,HOUSEHOLD APPLIANCE STORES,67.98,Pound Sterling (826),1,67.98,Debit,74678586212060026903486,2016-08-02,GLOUCESTER CC
